[Event "GER-ch Youth U16 2019"]
[Site "Willingen"]
[Date "2019.06.13"]
[Round "7.2"]
[White "Suvorov, Alexander"]
[Black "Koellner, Ruben Gideon"]
[Result "1-0"]
[ECO "A45"]
[WhiteElo "2325"]
[BlackElo "2299"]
[Annotator "NA"]
[PlyCount "102"]
[EventDate "2019.06.07"]
[EventType "swiss"]
[EventRounds "9"]
[EventCountry "GER"]
[SourceTitle "playchess.com"]
[Source "ChessBase"]
[SourceQuality "1"]
[TimeControl "40/5400+30:1800+30"]

1. d4 {[%emt 0:00:00]} Nf6 {[%emt 0:00:00]} 2. Bf4 {[%emt 0:00:00]} d6 {[%emt 0:00:37]} 3. e3 {[%emt 0:00:27]} g6 {[%emt 0:00:25]} 4. h3 {[%emt 0:01:05]} Bg7 {[%emt 0:00:14]} 5. Nf3 {[%emt 0:00:11]} O-O {[%emt 0:00:58]} 6. Be2 {[%emt 0:00:13]} Nfd7 {[%emt 0:02:30]} 7. O-O {[%emt 0:03:02]} e5 {[%emt 0:00:58]} 8. Bh2 {[%emt 0:00:14]} Nc6 {[%emt 0:03:32]} 9. c3 {[%emt 0:02:47]} h6 {[%emt 0:00:44]} 10. Na3 {[%emt 0:03:37]} f5 {[%emt 0:06:04]} 11. b4 {[%emt 0:11:39]} Qe7 {[%emt 0:06:40]} 12. Qc2 {[%emt 0:16:09]} e4 {[%emt 0:11:46]} 13. Nd2 {[%emt 0:01:27]} g5 {[%emt 0:01:24]} 14. b5 {[%emt 0:03:22]} Nd8 {[%emt 0:00:12]} 15. c4 {[%emt 0:01:34]} b6 {[%emt 0:02:15]} 16. Qb3 {[%emt 0:12:22]} Kh8 {[%emt 0:06:02]} 17. Nc2 {[%emt 0:01:13]} Bb7 {[%emt 0:01:26]} 18. Nb4 {[%emt 0:01:31]} Qf7 {[%emt 0:00:54]} 19. f3 {[%emt 0:10:22]} exf3 {[%emt 0:09:37]} 20. Bxf3 {[%emt 0:00:30]} Bxf3 {[%emt 0:00:08]} 21. Rxf3 {[%emt 0:00:54]} Qh5 {[%emt 0:08:14]} 22. Raf1 {[%emt 0:03:36]} g4 {[%emt 0:02:38]} 23. hxg4 {[%emt 0:00:32]} fxg4 {[%emt 0:00:07]} 24. Rxf8+ {[%emt 0:00:38]} Nxf8 {[%emt 0:00:07]} 25. Qd3 {[%emt 0:00:50]} Nde6 {[%emt 0:02:26]} 26. Qf5 {[%emt 0:01:51]} Qh4 {[%emt 0:03:20]} 27. Ne4 {[%emt 0:00:41]} Re8 {[%emt 0:02:38]} 28. Bg3 {[%emt 0:00:21]} Qd8 {[%emt 0:04:49]} 29. Qxg4 {[%emt 0:01:10]} Nh7 {[%emt 0:00:59]} 30. Nd5 {[%emt 0:01:24]} Neg5 {[%emt 0:01:46]} 31. Nxg5 {[%emt 0:00:28]} Nxg5 {[%emt 0:00:07]} 32. Bh4 {[%emt 0:01:05]} Kg8 {[%emt 0:00:42]} 33. Bxg5 {[%emt 0:00:32]} Qxg5 {[%emt 0:00:38]} 34. Qxg5 {[%emt 0:00:24]} hxg5 {[%emt 0:00:05]} 35. Rf5 {[%emt 0:00:28]} g4 {[%emt 0:01:48]} 36. Rg5 {[%emt 0:00:17]} Kf7 {[%emt 0:00:08]} 37. Rxg4 {[%emt 0:00:07]} Bh6 {[%emt 0:00:23]} 38. Rg3 {[%emt 0:00:18]} Rc8 {[%emt 0:00:52]} 39. Rf3+ {[%emt 0:00:38]} Ke8 {[%emt 0:00:49]} 40. Rf6 {[%emt 0:02:36]} Bf8 {[%emt 0:00:14]} 41. Nb4 {[%emt 0:30:33]} Be7 {[%emt 0:31:43]} 42. Rh6 {[%emt 0:01:47]} Bg5 {[%emt 0:00:41]} 43. Rh8+ {[%emt 0:00:19]} Kd7 {[%emt 0:00:05]} 44. Rh7+ {[%emt 0:00:50]} Ke6 {[%emt 0:00:26]} 45. Kf2 {[%emt 0:00:38]} Rf8+ {[%emt 0:00:22]} 46. Ke2 {[%emt 0:00:14]} Rg8 {[%emt 0:00:29]} 47. Rxc7 {[%emt 0:02:59]} Bd8 {[%emt 0:00:53]} 48. Rxa7 {[%emt 0:00:30]} Rxg2+ {[%emt 0:00:05]} 49. Kd3 {[%emt 0:00:47]} Rb2 {[%emt 0:00:36]} 50. Nc6 {[%emt 0:00:39]} Bg5 {[%emt 0:00:19]} 51. Ke4 {[%emt 0:00:54]} Re2 {[%emt 0:00:40] normal} 1-0

[Event "GER-ch Youth U16 2019"]
[Site "Willingen"]
[Date "2019.06.13"]
[Round "7.4"]
[White "Woelk, Tom-Frederic"]
[Black "Knuedel, Torben"]
[Result "0-1"]
[ECO "E83"]
[WhiteElo "2239"]
[BlackElo "2044"]
[Annotator "NA"]
[PlyCount "86"]
[EventDate "2019.06.07"]
[EventType "swiss"]
[EventRounds "9"]
[EventCountry "GER"]
[SourceTitle "playchess.com"]
[Source "ChessBase"]
[SourceQuality "1"]
[TimeControl "40/5400+30:1800+30"]

1. d4 {[%emt 0:00:00]} Nf6 {[%emt 0:00:00]} 2. c4 {[%emt 0:00:00]} g6 {[%emt 0:00:00]} 3. Nc3 {[%emt 0:00:00]} Bg7 {[%emt 0:00:00]} 4. e4 {[%emt 0:00:00]} d6 {[%emt 0:00:00]} 5. f3 {[%emt 0:00:00]} O-O {[%emt 0:00:13]} 6. Nge2 {[%emt 0:00:00]} Nc6 {[%emt 0:00:07]} 7. Be3 {[%emt 0:03:08]} a6 {[%emt 0:00:09]} 8. Qd2 {[%emt 0:01:51]} Na5 {[%emt 0:00:21]} 9. Ng3 {[%emt 0:04:22]} b5 {[%emt 0:00:09]} 10. cxb5 {[%emt 0:05:55]} axb5 {[%emt 0:00:02]} 11. Rc1 {[%emt 0:08:22]} b4 {[%emt 0:00:12]} 12. Nd1 {[%emt 0:05:46]} Nb7 {[%emt 0:00:06]} 13. Qxb4 {[%emt 0:10:22]} c5 {[%emt 0:16:22]} 14. dxc5 {[%emt 0:11:25]} dxc5 {[%emt 0:00:20]} 15. Bxc5 {[%emt 0:06:26]} Nxc5 {[%emt 0:00:09]} 16. Qxc5 {[%emt 0:02:52]} Be6 {[%emt 0:06:18]} 17. Qf2 {[%emt 0:15:46]} Bh6 {[%emt 0:07:20]} 18. Rc3 {[%emt 0:04:10]} Rxa2 {[%emt 0:05:54]} 19. Bd3 {[%emt 0:00:08]} Bg7 {[%emt 0:05:23]} 20. Bb1 {[%emt 0:06:18]} Ra1 {[%emt 0:05:06]} 21. Qc2 {[%emt 0:00:05]} Qb6 {[%emt 0:07:58]} 22. Ne2 {[%emt 0:01:39]} Nd7 {[%emt 0:05:50]} 23. Ra3 {[%emt 0:01:59]} Bxb2 {[%emt 0:03:39]} 24. Rxa1 {[%emt 0:00:36]} Bxa1 {[%emt 0:00:02]} 25. Nf2 {[%emt 0:02:39]} Qb4+ {[%emt 0:02:48]} 26. Kf1 {[%emt 0:00:28]} Rb8 {[%emt 0:00:10]} 27. Ba2 {[%emt 0:01:29]} Bxa2 {[%emt 0:00:14]} 28. Qxa2 Qb1+ {[%emt 0:00:04]} 29. Qxb1 {[%emt 0:00:09]} Rxb1+ {[%emt 0:00:01]} 30. Nc1 {[%emt 0:00:09]} Rxc1+ {[%emt 0:00:07]} 31. Ke2 {[%emt 0:00:04]} Rxh1 {[%emt 0:00:11]} 32. Nxh1 {[%emt 0:00:01]} Nc5 {[%emt 0:01:22]} 33. Ng3 {[%emt 0:00:23]} Be5 {[%emt 0:03:59]} 34. Nf1 {[%emt 0:00:06]} h5 {[%emt 0:00:38]} 35. g3 {[%emt 0:00:05]} Bd4 {[%emt 0:02:11]} 36. f4 {[%emt 0:02:04]} Kg7 {[%emt 0:03:36]} 37. Kf3 {[%emt 0:00:05]} Nb3 {[%emt 0:01:09]} 38. e5 {[%emt 0:01:39]} g5 {[%emt 0:04:27]} 39. Ke4 {[%emt 0:00:32]} g4 {[%emt 0:01:58]} 40. Kf5 {[%emt 0:00:40]} Kh6 {[%emt 0:00:25]} 41. Ke4 {[%emt 0:30:06]} Bg1 {[%emt 0:30:29]} 42. Kd5 {[%emt 0:01:43]} e6+ {[%emt 0:01:25]} 43. Ke4 {[%emt 0:00:53]} Nc5# {[%emt 0:00:08] normal} 0-1

[Event "GER-ch Youth U16 2019"]
[Site "Willingen"]
[Date "2019.06.13"]
[Round "7.5"]
[White "Trifan, Andrei Ioan"]
[Black "Post, Hugo"]
[Result "1/2-1/2"]
[ECO "B81"]
[WhiteElo "2268"]
[BlackElo "2113"]
[Annotator "NA"]
[PlyCount "84"]
[EventDate "2019.06.07"]
[EventType "swiss"]
[EventRounds "9"]
[EventCountry "GER"]
[SourceTitle "playchess.com"]
[Source "ChessBase"]
[SourceQuality "1"]
[TimeControl "40/5400+30:1800+30"]

1. e4 {[%emt 0:00:00]} c5 {[%emt 0:00:00]} 2. Nf3 {[%emt 0:00:00]} d6 {[%emt 0:00:00]} 3. d4 {[%emt 0:00:20]} cxd4 {[%emt 0:00:12]} 4. Nxd4 {[%emt 0:00:14]} Nf6 {[%emt 0:00:14]} 5. Nc3 {[%emt 0:00:18]} e6 {[%emt 0:00:19]} 6. g4 {[%emt 0:00:47]} h6 {[%emt 0:00:30]} 7. h4 {[%emt 0:00:38]} Nc6 {[%emt 0:00:26]} 8. Rg1 {[%emt 0:01:09]} d5 {[%emt 0:00:20]} 9. exd5 {[%emt 0:01:56]} Nxd5 {[%emt 0:00:06]} 10. Nxd5 {[%emt 0:00:48]} exd5 {[%emt 0:00:19]} 11. Be3 {[%emt 0:01:35]} Qxh4 {[%emt 0:01:26]} 12. Nb5 {[%emt 0:01:03]} Qe7 {[%emt 0:01:30]} 13. Qxd5 {[%emt 0:01:33]} Be6 {[%emt 0:02:25]} 14. Qe4 {[%emt 0:01:21]} O-O-O {[%emt 0:02:03]} 15. Nxa7+ {[%emt 0:13:46]} Nxa7 {[%emt 0:00:11]} 16. Bxa7 {[%emt 0:00:06]} Qc7 {[%emt 0:02:08]} 17. Rg3 {[%emt 0:12:08]} Bd5 {[%emt 0:02:18]} 18. Qf5+ {[%emt 0:03:55]} Be6 {[%emt 0:00:17]} 19. Qe4 {[%emt 0:00:54]} Bd5 {[%emt 0:00:35]} 20. Qf5+ {[%emt 0:10:27]} Be6 {[%emt 0:15:35]} 21. Qb5 {[%emt 0:08:55]} Bd7 {[%emt 0:27:13]} 22. Qb3 {[%emt 0:00:25]} Re8+ {[%emt 0:10:07]} 23. Be2 {[%emt 0:05:21]} Bc6 {[%emt 0:02:28]} 24. Bb6 {[%emt 0:02:21]} Qf4 {[%emt 0:04:25]} 25. Re3 {[%emt 0:06:10]} Bb4+ {[%emt 0:01:57]} 26. c3 {[%emt 0:01:06]} Bd6 {[%emt 0:00:38]} 27. Bd4 {[%emt 0:02:06]} Qg5 {[%emt 0:02:28]} 28. Qxf7 {[%emt 0:10:18]} Bf4 {[%emt 0:02:00]} 29. Qxg7 {[%emt 0:06:07]} Bxe3 {[%emt 0:01:44]} 30. fxe3 {[%emt 0:00:16]} Qh4+ {[%emt 0:09:17]} 31. Kd2 {[%emt 0:00:14]} Rhg8 {[%emt 0:00:32]} 32. Qf7 {[%emt 0:03:42]} Rgf8 {[%emt 0:00:29]} 33. Qc4 {[%emt 0:00:43]} Rf2 {[%emt 0:01:10]} 34. b4 {[%emt 0:01:01]} Qg5 {[%emt 0:05:25]} 35. Rf1 {[%emt 0:01:13]} Rxf1 {[%emt 0:01:02]} 36. Bxf1 {[%emt 0:00:02]} Qd5 {[%emt 0:00:42]} 37. b5 {[%emt 0:01:12]} Qxc4 {[%emt 0:00:23]} 38. Bxc4 {[%emt 0:00:01]} Bd7 {[%emt 0:00:33]} 39. Bg7 {[%emt 0:00:22]} Re4 {[%emt 0:00:23]} 40. Bd3 {[%emt 0:02:07]} Rxg4 {[%emt 0:02:22]} 41. Bxh6 {[%emt 0:30:17]} Rg2+ {[%emt 0:30:35]} 42. Kc1 {[%emt 0:00:00]} Rxa2 {[%emt 0:00:00] normal} 1/2-1/2

[Event "GER-ch Youth U16 2019"]
[Site "Willingen"]
[Date "2019.06.13"]
[Round "7.6"]
[White "Fromm, Marius"]
[Black "Kopylov, Daniel"]
[Result "1-0"]
[ECO "A09"]
[WhiteElo "2038"]
[BlackElo "2263"]
[Annotator "NA"]
[PlyCount "94"]
[EventDate "2019.06.07"]
[EventType "swiss"]
[EventRounds "9"]
[EventCountry "GER"]
[SourceTitle "playchess.com"]
[Source "ChessBase"]
[SourceQuality "1"]
[TimeControl "40/5400+30:1800+30"]

1. Nf3 {[%emt 0:00:00]} d5 {[%emt 0:00:00]} 2. c4 {[%emt 0:00:00]} d4 {[%emt 0:00:10]} 3. g3 {[%emt 0:00:00]} Nc6 {[%emt 0:00:25]} 4. Bg2 {[%emt 0:01:32]} e5 {[%emt 0:00:27]} 5. d3 {[%emt 0:01:00]} Nf6 {[%emt 0:00:40]} 6. O-O {[%emt 0:01:02]} a5 {[%emt 0:00:54]} 7. Na3 {[%emt 0:20:21]} Be7 {[%emt 0:02:11]} 8. Bg5 {[%emt 0:04:48]} O-O {[%emt 0:24:30]} 9. Nc2 {[%emt 0:01:56]} Nd7 {[%emt 0:01:26]} 10. Bxe7 {[%emt 0:00:34]} Qxe7 {[%emt 0:00:07]} 11. e3 {[%emt 0:06:59]} Qd6 {[%emt 0:05:50]} 12. exd4 {[%emt 0:00:44]} exd4 {[%emt 0:00:45]} 13. Re1 {[%emt 0:07:14]} Nc5 {[%emt 0:01:17]} 14. Ng5 {[%emt 0:01:31]} Bf5 {[%emt 0:23:12]} 15. Ne4 {[%emt 0:01:42]} Bxe4 {[%emt 0:00:59]} 16. Bxe4 {[%emt 0:00:11]} Nxe4 {[%emt 0:01:58]} 17. Rxe4 {[%emt 0:00:09]} f5 {[%emt 0:00:05]} 18. Re1 {[%emt 0:04:49]} f4 {[%emt 0:09:54]} 19. Qh5 {[%emt 0:07:49]} Rad8 {[%emt 0:05:55]} 20. Re4 {[%emt 0:05:49]} g6 {[%emt 0:01:32]} 21. Qe2 {[%emt 0:03:00]} f3 {[%emt 0:02:02]} 22. Qf1 {[%emt 0:00:56]} Rde8 {[%emt 0:03:20]} 23. Rae1 {[%emt 0:01:08]} Re5 {[%emt 0:01:11]} 24. Qh3 {[%emt 0:03:12]} Rff5 {[%emt 0:00:28]} 25. b3 {[%emt 0:04:50]} Kg7 {[%emt 0:02:23]} 26. Qg4 {[%emt 0:01:19]} h5 {[%emt 0:00:49]} 27. Qh4 {[%emt 0:00:17]} Nb4 {[%emt 0:04:46]} 28. Nxd4 {[%emt 0:02:31]} Qxd4 {[%emt 0:05:55]} 29. Rxe5 {[%emt 0:01:06]} Qxh4 30. gxh4 {[%emt 0:00:14]} Rf7 {[%emt 0:01:16]} 31. Re7 {[%emt 0:01:03]} Nxd3 {[%emt 0:00:27]} 32. Rxf7+ {[%emt 0:00:06]} Kxf7 {[%emt 0:00:06]} 33. Re3 {[%emt 0:00:08]} Nb4 {[%emt 0:00:24]} 34. Rxf3+ {[%emt 0:00:04]} Ke7 {[%emt 0:01:00]} 35. a4 {[%emt 0:01:22]} Nc2 {[%emt 0:00:34]} 36. Kf1 {[%emt 0:01:12]} b6 {[%emt 0:00:27]} 37. Rg3 {[%emt 0:00:28]} Kf6 {[%emt 0:00:28]} 38. Rd3 {[%emt 0:01:04]} Ke6 {[%emt 0:00:12]} 39. Rd2 {[%emt 0:01:22]} Na1 {[%emt 0:00:52]} 40. Rd3 {[%emt 0:01:39]} Nc2 {[%emt 0:00:23]} 41. Ke2 {[%emt 0:30:38]} Nb4 {[%emt 0:01:32]} 42. Rg3 {[%emt 0:00:00]} Kf5 {[%emt 0:02:41]} 43. Ke3 {[%emt 0:00:00]} c5 {[%emt 0:03:36]} 44. Rg5+ {[%emt 0:00:00]} Kf6 {[%emt 0:00:22]} 45. Ke4 {[%emt 0:00:00]} Nc2 {[%emt 0:00:34]} 46. Kd5 {[%emt 0:00:00]} Nd4 {[%emt 0:00:43]} 47. Rg3 {[%emt 0:00:00]} Nf5 {[%emt 0:01:12] normal} 1-0

[Event "GER-ch Youth U16 2019"]
[Site "Willingen"]
[Date "2019.06.13"]
[Round "7.7"]
[White "Yi, Danny"]
[Black "Richter, Nils"]
[Result "0-1"]
[ECO "B23"]
[WhiteElo "2205"]
[BlackElo "2115"]
[Annotator "NA"]
[PlyCount "50"]
[EventDate "2019.06.07"]
[EventType "swiss"]
[EventRounds "9"]
[EventCountry "GER"]
[SourceTitle "playchess.com"]
[Source "ChessBase"]
[SourceQuality "1"]
[TimeControl "40/5400+30:1800+30"]

1. e4 {[%emt 0:00:00]} c5 {[%emt 0:00:00]} 2. Ne2 {[%emt 0:01:04]} Nc6 {[%emt 0:00:00]} 3. Nbc3 {[%emt 0:00:24]} e6 {[%emt 0:00:00]} 4. g3 {[%emt 0:00:53]} d5 {[%emt 0:00:05]} 5. Bg2 {[%emt 0:06:28]} d4 {[%emt 0:00:35]} 6. Nb1 {[%emt 0:00:55]} g6 {[%emt 0:06:37]} 7. O-O {[%emt 0:01:22]} Bg7 {[%emt 0:00:30]} 8. d3 {[%emt 0:01:51]} Nge7 {[%emt 0:02:53]} 9. c4 {[%emt 0:02:02]} dxc3 {[%emt 0:01:53]} 10. bxc3 {[%emt 0:00:58]} b6 {[%emt 0:01:57]} 11. Qc2 {[%emt 0:03:42]} Nb4 {[%emt 0:06:49]} 12. cxb4 {[%emt 0:05:15]} Bxa1 {[%emt 0:00:06]} 13. Nbc3 {[%emt 0:03:26]} cxb4 {[%emt 0:09:57]} 14. Qa4+ {[%emt 0:01:30]} Bd7 {[%emt 0:05:42]} 15. Qxb4 {[%emt 0:04:25]} Nc6 {[%emt 0:05:13]} 16. Qb3 {[%emt 0:08:12]} Rc8 {[%emt 0:04:59]} 17. Nb5 {[%emt 0:06:15]} O-O {[%emt 0:06:34]} 18. Ba3 {[%emt 0:03:09]} Bg7 {[%emt 0:02:16]} 19. Bxf8 {[%emt 0:02:57]} Qxf8 {[%emt 0:00:06]} 20. Rd1 {[%emt 0:03:17]} a6 {[%emt 0:05:36]} 21. Nbc3 {[%emt 0:02:51]} b5 {[%emt 0:00:57]} 22. a3 {[%emt 0:06:36]} Qc5 {[%emt 0:04:12]} 23. Na2 {[%emt 0:08:24]} Bf8 {[%emt 0:05:55]} 24. a4 {[%emt 0:07:04]} Na5 {[%emt 0:01:37]} 25. Qb2 {[%emt 0:00:45]} Qc2 {[%emt 0:02:07] normal} 0-1

[Event "GER-ch Youth U16 2019"]
[Site "Willingen"]
[Date "2019.06.13"]
[Round "7.8"]
[White "Boder, Jan"]
[Black "Koelle, Tobias"]
[Result "1/2-1/2"]
[ECO "A34"]
[WhiteElo "2123"]
[BlackElo "2215"]
[Annotator "NA"]
[PlyCount "41"]
[EventDate "2019.06.07"]
[EventType "swiss"]
[EventRounds "9"]
[EventCountry "GER"]
[SourceTitle "playchess.com"]
[Source "ChessBase"]
[SourceQuality "1"]
[TimeControl "40/5400+30:1800+30"]

1. c4 {[%emt 0:00:00]} c5 {[%emt 0:00:00]} 2. g3 {[%emt 0:00:13]} Nf6 {[%emt 0:00:00]} 3. Bg2 {[%emt 0:00:06]} d5 {[%emt 0:00:00]} 4. cxd5 {[%emt 0:00:29]} Nxd5 {[%emt 0:00:00]} 5. Nc3 {[%emt 0:00:07]} Nc7 {[%emt 0:00:02]} 6. Nf3 {[%emt 0:06:46]} Nc6 {[%emt 0:00:42]} 7. d3 {[%emt 0:00:14]} e5 {[%emt 0:00:17]} 8. O-O {[%emt 0:00:12]} Be7 {[%emt 0:00:04]} 9. Be3 {[%emt 0:01:57]} O-O {[%emt 0:04:51]} 10. Rc1 {[%emt 0:01:53]} Be6 {[%emt 0:02:32]} 11. Na4 {[%emt 0:05:36]} b6 {[%emt 0:02:35]} 12. b4 {[%emt 0:24:00]} Nxb4 {[%emt 0:00:52]} 13. Nxe5 {[%emt 0:00:06]} Bd5 {[%emt 0:00:38]} 14. a3 {[%emt 0:02:45]} Bxg2 {[%emt 0:01:26]} 15. Kxg2 {[%emt 0:00:22]} Qd5+ {[%emt 0:06:30]} 16. Kg1 {[%emt 0:00:47]} Nba6 {[%emt 0:02:51]} 17. Nf3 {[%emt 0:01:27]} Qh5 {[%emt 0:08:48]} 18. Nc3 {[%emt 0:04:39]} Nd5 {[%emt 0:09:08]} 19. Nxd5 {[%emt 0:02:44]} Qxd5 {[%emt 0:00:16]} 20. Qa4 {[%emt 0:00:20]} Nc7 {[%emt 0:01:24]} 21. d4 {[%emt 0:00:16] normal} 1/2-1/2

[Event "GER-ch Youth U16 2019"]
[Site "Willingen"]
[Date "2019.06.13"]
[Round "7.9"]
[White "Gutkin, Ilya"]
[Black "Huber, Benedikt"]
[Result "0-1"]
[ECO "A09"]
[WhiteElo "2041"]
[BlackElo "2051"]
[Annotator "NA"]
[PlyCount "82"]
[EventDate "2019.06.07"]
[EventType "swiss"]
[EventRounds "9"]
[EventCountry "GER"]
[SourceTitle "playchess.com"]
[Source "ChessBase"]
[SourceQuality "1"]
[TimeControl "40/5400+30:1800+30"]

1. Nf3 {[%emt 0:00:00]} d5 {[%emt 0:00:00]} 2. c4 {[%emt 0:00:00]} d4 {[%emt 0:00:05]} 3. d3 {[%emt 0:00:02]} Nc6 {[%emt 0:00:36]} 4. g3 {[%emt 0:00:43]} e5 {[%emt 0:00:53]} 5. Bg2 {[%emt 0:00:04]} Bb4+ {[%emt 0:01:06]} 6. Bd2 {[%emt 0:05:00]} a5 {[%emt 0:00:38]} 7. O-O {[%emt 0:00:13]} Nf6 {[%emt 0:00:36]} 8. Na3 {[%emt 0:01:37]} O-O {[%emt 0:02:32]} 9. Nc2 {[%emt 0:00:52]} Be7 {[%emt 0:02:11]} 10. a3 {[%emt 0:02:20]} Bf5 {[%emt 0:11:28]} 11. b4 {[%emt 0:12:40]} Nd7 {[%emt 0:08:40]} 12. Nfe1 {[%emt 0:12:38]} Qb8 {[%emt 0:05:35]} 13. e3 {[%emt 0:10:59]} Bf6 {[%emt 0:12:32]} 14. exd4 {[%emt 0:22:12]} exd4 {[%emt 0:01:09]} 15. Bf4 {[%emt 0:00:13]} g5 {[%emt 0:04:10]} 16. Bd2 {[%emt 0:01:29]} Re8 {[%emt 0:01:46]} 17. f4 {[%emt 0:03:07]} g4 {[%emt 0:00:17]} 18. Be4 {[%emt 0:01:16]} Bxe4 {[%emt 0:01:24]} 19. dxe4 {[%emt 0:00:06]} d3 {[%emt 0:04:26]} 20. Qxg4+ {[%emt 0:02:11]} Kf8 {[%emt 0:00:12]} 21. e5 {[%emt 0:13:28]} dxc2 {[%emt 0:00:37]} 22. exf6 {[%emt 0:00:28]} Nxf6 {[%emt 0:00:13]} 23. Qh4 {[%emt 0:00:37]} Qd8 {[%emt 0:07:33]} 24. Bc3 {[%emt 0:03:32]} Nd4 {[%emt 0:00:08]} 25. Kh1 {[%emt 0:02:43]} axb4 {[%emt 0:01:24]} 26. Bxb4+ {[%emt 0:00:38]} Kg8 {[%emt 0:00:06]} 27. Bc3 {[%emt 0:00:23]} Rxa3 {[%emt 0:03:19]} 28. Bxd4 {[%emt 0:00:58]} Qxd4 {[%emt 0:05:41]} 29. Nxc2 {[%emt 0:00:45]} Qe4+ {[%emt 0:00:34]} 30. Kg1 {[%emt 0:00:07]} Rxa1 {[%emt 0:01:40]} 31. Nxa1 {[%emt 0:00:23]} Qd4+ {[%emt 0:12:49]} 32. Kg2 {[%emt 0:01:31]} Re2+ {[%emt 0:05:16]} 33. Kh3 {[%emt 0:00:06]} Qd7+ {[%emt 0:00:11]} 34. f5 {[%emt 0:00:50]} Qd2 {[%emt 0:00:06]} 35. Rh1 {[%emt 0:02:20]} Ne4 {[%emt 0:00:13]} 36. Qh5 {[%emt 0:00:46]} Ng5+ {[%emt 0:02:00]} 37. Kh4 {[%emt 0:00:11]} Re4+ {[%emt 0:00:21]} 38. g4 {[%emt 0:00:06]} f6 {[%emt 0:01:09]} 39. Qh6 {[%emt 0:00:37]} Rxg4+ {[%emt 0:03:35]} 40. Kxg4 {[%emt 0:00:09]} Qg2+ {[%emt 0:00:03]} 41. Kf4 {[%emt 0:30:39]} Qf3# {normal} 0-1

[Event "GER-ch Youth U16 2019"]
[Site "Willingen"]
[Date "2019.06.13"]
[Round "7.10"]
[White "Hommel, Niclas"]
[Black "Liebold, Aaron"]
[Result "1-0"]
[ECO "B90"]
[WhiteElo "1953"]
[BlackElo "1870"]
[Annotator "NA"]
[PlyCount "71"]
[EventDate "2019.06.07"]
[EventType "swiss"]
[EventRounds "9"]
[EventCountry "GER"]
[SourceTitle "playchess.com"]
[Source "ChessBase"]
[SourceQuality "1"]
[TimeControl "40/5400+30:1800+30"]

1. e4 {[%emt 0:00:00]} c5 {[%emt 0:00:00]} 2. Nf3 {[%emt 0:00:00]} d6 {[%emt 0:00:00]} 3. d4 {[%emt 0:00:00]} cxd4 {[%emt 0:00:10]} 4. Nxd4 {[%emt 0:00:00]} Nf6 {[%emt 0:00:11]} 5. Nc3 {[%emt 0:00:00]} a6 {[%emt 0:00:13]} 6. f3 {[%emt 0:00:00]} e5 {[%emt 0:00:07]} 7. Nb3 {[%emt 0:00:00]} Be6 {[%emt 0:00:16]} 8. Be3 {[%emt 0:00:05]} Be7 {[%emt 0:00:21]} 9. Qd2 {[%emt 0:00:11]} O-O {[%emt 0:00:21]} 10. O-O-O {[%emt 0:02:11]} Nbd7 {[%emt 0:01:09]} 11. g4 {[%emt 0:00:43]} b5 {[%emt 0:00:32]} 12. h4 {[%emt 0:01:45]} b4 {[%emt 0:05:06]} 13. Nd5 {[%emt 0:01:27]} Bxd5 {[%emt 0:04:45]} 14. exd5 {[%emt 0:01:13]} a5 {[%emt 0:00:35]} 15. Kb1 {[%emt 0:00:17]} a4 {[%emt 0:06:32]} 16. Nc1 {[%emt 0:01:24]} Nb6 {[%emt 0:01:30]} 17. Bxb6 {[%emt 0:11:42]} Qxb6 {[%emt 0:00:11]} 18. Bd3 {[%emt 0:07:22]} Nd7 {[%emt 0:05:23]} 19. Bf5 {[%emt 0:15:46]} Nc5 {[%emt 0:06:09]} 20. g5 {[%emt 0:00:36]} Rfb8 {[%emt 0:14:09]} 21. h5 {[%emt 0:13:42]} Qb5 {[%emt 0:08:05]} 22. g6 {[%emt 0:05:58]} h6 {[%emt 0:02:40]} 23. gxf7+ {[%emt 0:08:32]} Kf8 {[%emt 0:02:54]} 24. Rdg1 {[%emt 0:05:08]} Bf6 {[%emt 0:02:00]} 25. Rg6 {[%emt 0:02:46]} b3 {[%emt 0:02:42]} 26. cxb3 {[%emt 0:00:11]} Nxb3 {[%emt 0:04:26]} 27. Nxb3 {[%emt 0:01:16]} axb3 {[%emt 0:00:19]} 28. a3 {[%emt 0:00:06]} Ke7 {[%emt 0:09:49]} 29. Rhg1 {[%emt 0:06:21]} Rf8 {[%emt 0:03:23]} 30. Qc3 {[%emt 0:06:35]} Ra7 {[%emt 0:02:10]} 31. Be6 {[%emt 0:04:11]} Qb6 {[%emt 0:04:23]} 32. Rc1 {[%emt 0:00:07]} Bg5 {[%emt 0:03:27]} 33. Rxg5 {[%emt 0:01:56]} hxg5 {[%emt 0:00:09]} 34. Qd2 {[%emt 0:00:03]} Kd8 {[%emt 0:03:41]} 35. Qxg5+ {[%emt 0:00:07]} Re7 {[%emt 0:00:14]} 36. Rc8# {normal} 1-0

[Event "GER-ch Youth U16 2019"]
[Site "Willingen"]
[Date "2019.06.13"]
[Round "7.11"]
[White "Rietschel, Tilo"]
[Black "Koehler, Lukas"]
[Result "0-1"]
[ECO "C60"]
[WhiteElo "2005"]
[BlackElo "2068"]
[Annotator "NA"]
[PlyCount "80"]
[EventDate "2019.06.07"]
[EventType "swiss"]
[EventRounds "9"]
[EventCountry "GER"]
[SourceTitle "playchess.com"]
[Source "ChessBase"]
[SourceQuality "1"]
[TimeControl "40/5400+30:1800+30"]

1. e4 {[%emt 0:00:00]} e5 {[%emt 0:00:00]} 2. Nf3 {[%emt 0:00:00]} Nc6 {[%emt 0:00:00]} 3. Bb5 {[%emt 0:00:27]} g6 {[%emt 0:00:02]} 4. O-O {[%emt 0:03:33]} Bg7 {[%emt 0:00:19]} 5. Re1 {[%emt 0:01:13]} a6 {[%emt 0:02:44]} 6. Ba4 {[%emt 0:00:13]} d6 {[%emt 0:01:01]} 7. c3 {[%emt 0:00:13]} Bd7 {[%emt 0:03:37]} 8. d4 {[%emt 0:01:11]} b5 {[%emt 0:01:48]} 9. Bb3 {[%emt 0:01:33]} Nf6 {[%emt 0:02:11]} 10. Nbd2 {[%emt 0:10:57]} O-O {[%emt 0:01:14]} 11. Nf1 {[%emt 0:02:57]} Nh5 {[%emt 0:01:08]} 12. Ne3 {[%emt 0:11:36]} h6 {[%emt 0:07:52]} 13. a4 {[%emt 0:25:30]} Rb8 {[%emt 0:03:26]} 14. axb5 {[%emt 0:02:25]} axb5 {[%emt 0:00:16]} 15. Nd5 {[%emt 0:03:05]} Bg4 {[%emt 0:14:41]} 16. Ra6 {[%emt 0:02:11]} Bd7 {[%emt 0:11:24]} 17. dxe5 {[%emt 0:06:01]} dxe5 {[%emt 0:08:11]} 18. Be3 {[%emt 0:03:21]} Kh7 {[%emt 0:02:32]} 19. Qd2 {[%emt 0:06:58]} Qc8 {[%emt 0:04:12]} 20. Rea1 {[%emt 0:00:57]} Rd8 {[%emt 0:04:29]} 21. Nh4 {[%emt 0:08:56]} Qb7 {[%emt 0:05:35]} 22. f3 {[%emt 0:04:36]} Be6 {[%emt 0:05:42]} 23. Qf2 {[%emt 0:01:06]} Ra8 {[%emt 0:07:10]} 24. Rxa8 {[%emt 0:01:06]} Rxa8 {[%emt 0:00:05]} 25. Rxa8 {[%emt 0:00:55]} Qxa8 {[%emt 0:00:08]} 26. g4 {[%emt 0:00:08]} Qa1+ {[%emt 0:01:15]} 27. Kg2 {[%emt 0:00:12]} Nf4+ {[%emt 0:07:26]} 28. Bxf4 {[%emt 0:00:20]} exf4 {[%emt 0:00:05]} 29. Qc2 {[%emt 0:00:39]} Na5 {[%emt 0:02:00]} 30. e5 {[%emt 0:01:00]} Nxb3 {[%emt 0:01:11]} 31. Nxg6 {[%emt 0:00:41]} Qc1 {[%emt 0:03:12]} 32. Nf8+ {[%emt 0:01:14]} Kg8 {[%emt 0:00:04]} 33. Qh7+ {[%emt 0:00:14]} Kxf8 {[%emt 0:00:06]} 34. Nf6 {[%emt 0:00:14]} Qd2+ {[%emt 0:00:43]} 35. Kg1 {[%emt 0:00:09]} Qe1+ {[%emt 0:00:24]} 36. Kg2 {[%emt 0:00:07]} Qe2+ {[%emt 0:00:02]} 37. Kg1 {[%emt 0:00:05]} Bxf6 {[%emt 0:01:22]} 38. exf6 {[%emt 0:00:05]} Qe1+ {[%emt 0:00:25]} 39. Kg2 {[%emt 0:00:05]} Qe2+ {[%emt 0:00:03]} 40. Kg1 {[%emt 0:00:04]} Ke8 {[%emt 0:00:37] normal} 0-1